bitfinex/quotes_ETHUSD_20220118
["timestamp","ask_amount","ask_price","bid_price","bid_amount"]
[1642515986245,1.92619525,3113.0,3112.7,0.00284212]
[1642515986644,0.8032,3113.0,3112.7,0.00284212]
[1642515986853,2.67659597,3113.4,3112.7,0.00284212]
[1642515987045,2.80489597,3113.4,3112.7,0.00284212]
[1642515987251,2.67659597,3113.4,3112.7,0.00284212]
[1642515987445,2.67659597,3113.4,3112.6,0.00341054]
[1642515987845,1.408264,3113.3,3112.6,0.00341054]
[1642515988051,2.211374,3113.3,3112.6,0.00341054]
[1642515988557,4.038357,3113.2,3112.5,0.00397896]
[1642515988817,1.48657722,3112.8,3112.5,0.00397896]
[1642515989233,0.80327,3112.8,3112.5,0.00397896]
[1642515991223,0.75327,3112.8,3112.5,0.00397896]
[1642515992569,2.33472445,3112.6,3112.5,0.00397896]
[1642515993016,0.75327,3112.8,3112.5,0.00397896]
[1642515993178,0.1285,3112.9,3112.5,0.00397896]
[1642515993376,0.1285,3112.9,3112.6,0.16586766]
[1642515993578,0.1285,3112.9,3112.6,0.1285]
[1642515993776,0.1285,3112.9,3112.7,0.00284212]
[1642515996610,0.1285,3112.9,3112.5,0.00397896]
[1642515997414,0.1285,3112.9,3112.6,0.8030971]
[1642515997798,0.1285,3112.9,3112.7,0.00284212]
[1642515998198,0.1285,3112.9,3112.5,0.00397896]
[1642515998440,0.1285,3112.9,3112.5,0.80711706]
[1642515998801,0.1285,3112.9,3112.6,0.00341054]
[1642516001347,0.1285,3112.9,3112.5,0.00397896]
[1642516001764,1.24208402,3112.7,3112.5,0.00397896]
[1642516007039,0.1285,3112.8,3112.5,0.00397896]
[1642516007205,0.1285,3113.2,3112.5,0.00397896]
[1642516007404,2.18328322,3113.4,3112.5,0.00397896]
[1642516008451,1.2044911,3113.3,3112.5,0.00397896]
[1642516008649,1.2044911,3113.3,3112.6,0.803038]
[1642516009048,1.2044911,3113.3,3112.7,0.00284212]
[1642516009754,1.2044911,3113.3,3112.7,0.30284212]
[1642516009950,1.2044911,3113.3,3112.7,0.00284212]
[1642516010150,1.2044911,3113.3,3112.4,0.1283]
[1642516010151,1.2044911,3113.3,3112.8,0.00227369]
[1642516010352,1.2044911,3113.3,3112.5,0.00397896]
[1642516010556,1.2044911,3113.3,3112.5,0.80707656]
[1642516010751,1.2044911,3113.3,3112.5,1.10707656]
[1642516010953,1.2044911,3113.3,3112.6,0.00341054]
[1642516012194,1.2044911,3113.3,3112.6,0.13171054]
[1642516012394,1.54540199,3112.8,3112.6,0.13171054]
[1642516012604,1.54540199,3112.8,3112.7,0.00284212]
[1642516012809,2.18328322,3113.4,3112.7,0.00284212]
[1642516013102,0.80318,3113.5,3112.5,0.00397896]
[1642516013297,0.93144,3113.6,3112.6,0.1283]
[1642516013596,0.00113685,3113.4,3112.7,0.00284212]
[1642516014128,1.53557709,3113.4,3112.5,0.80711096]
[1642516014300,4.27212744,3113.4,3112.5,1.10711096]
[1642516014494,4.27212744,3113.4,3112.6,0.00341054]
[1642516014699,2.7376872,3113.4,3112.6,0.00341054]
[1642516015446,2.73655035,3113.3,3112.5,0.00397896]
[1642516015673,2.73655035,3113.3,3112.5,0.80710486]
[1642516015864,2.73655035,3113.3,3112.5,1.10710486]
[1642516016046,2.73655035,3113.3,3112.6,0.00341054]
[1642516016247,1.51788461,3113.4,3112.6,0.00341054]
[1642516016665,1.46788461,3113.4,3112.6,0.00341054]
[1642516016873,1.46788461,3113.4,3112.6,0.80767109]
[1642516017061,1.46788461,3113.4,3112.7,0.3]
[1642516017329,2.73655035,3113.3,3112.7,0.30397897]
[1642516017459,2.73655035,3113.3,3112.8,0.00341054]
[1642516019097,2.73655035,3113.3,3112.5,0.00511581]
[1642516019296,4.34294035,3113.3,3112.5,0.00511581]
[1642516019697,1.44941635,3112.8,3112.3,1.5868079]
[1642516020499,2.73655035,3112.7,3112.3,1.5868079]
[1642516021401,2.73655035,3112.7,3112.3,1.8868079]
[1642516022203,1.51024335,3112.8,3112.3,1.8868079]
[1642516022649,0.00113684,3112.7,3112.3,1.8868079]
[1642516023649,0.00113684,3112.7,3112.3,1.5868079]
[1642516023849,2.73792483,3112.7,3112.3,1.8868079]
[1642516024461,2.73792483,3112.7,3112.3,1.5868079]
[1642516024776,1.87243246,3112.5,3112.3,1.5868079]
[1642516024986,1.82243246,3112.5,3112.3,1.5868079]
[1642516026403,2.73678799,3112.4,3112.3,1.5868079]
[1642516026812,2.73678799,3112.4,3112.3,1.58794475]
[1642516028247,2.73792483,3112.7,3112.3,1.58794475]
[1642516032961,0.00113684,3112.7,3112.3,1.58794475]
[1642516033152,0.00113684,3112.7,3112.4,0.03998697]
[1642516033352,0.00113684,3112.7,3112.3,1.58794475]
[1642516034412,0.80331,3112.6,3112.3,1.58794475]
[1642516034607,3.01397662,3112.6,3112.3,1.58794475]
[1642516034808,3.81730662,3112.6,3112.3,1.58794475]
[1642516035406,1.60664,3112.6,3112.3,1.58794475]
[1642516035606,0.00113684,3112.7,3112.3,1.58794475]
[1642516035607,4.03949384,3112.7,3112.3,1.58794475]
[1642516035866,2.7362851,3112.5,3112.1,2.73594841]
[1642516036021,0.1285,3112.4,3112.1,2.73594841]
[1642516036935,3.46166231,3112.2,3112.1,2.73594841]
[1642516037107,3.59016231,3112.2,3112.1,2.73594841]
[1642516037327,3.59016231,3112.2,3112.1,2.73708526]
[1642516038551,6.32644741,3112.2,3112.1,2.73708526]
[1642516039149,10.42220794,3112.2,3112.1,2.73708526]
[1642516039351,10.42220794,3112.2,3111.8,0.00857143]
[1642516039352,6.7536,3112.1,3111.8,0.00857143]
[1642516039551,18.80226256,3111.9,3111.8,0.00857143]
[1642516039758,5.95,3111.8,3111.5,1.299e-05]
[1642516039964,5.95,3111.8,3109.4,7.00426165]
[1642516039965,8.48976,3111.8,3109.4,7.00426165]
[1642516040218,8.48976,3111.8,3111.6,0.00284211]
[1642516040219,10.1000135,3111.7,3111.6,0.00284211]
[1642516040356,31.91184856,3111.7,3111.6,4.211e-05]
[1642516040557,31.91184856,3111.7,3109.8,0.1285]
[1642516040558,5.75,3111.6,3109.8,0.1285]
[1642516040752,1.60764,3111.3,3109.8,0.1285]
[1642516040952,0.80363,3111.4,3109.8,4.14954856]
[1642516041151,0.80363,3111.4,3109.7,4.08387453]
[1642516041409,0.80363,3111.4,3109.8,0.1285]
[1642516041410,1.22085782,3110.5,3109.8,0.1285]
[1642516041617,0.94441982,3111.3,3109.8,0.94239163]
[1642516041910,2.35,3111.2,3109.8,0.7633232]
[1642516042104,2.3573895,3111.2,3109.9,0.1285]
[1642516042372,0.81051108,3111.1,3109.9,0.1285]
[1642516042504,1.66715679,3110.7,3109.6,4.14954856]
[1642516042708,1.50609616,3110.6,3109.6,0.93221]
[1642516042904,1.50609616,3110.6,3109.7,0.00113685]
[1642516042905,0.00397896,3110.6,3109.7,0.00113685]
[1642516043103,2.35,3111.2,3109.7,0.00113685]
[1642516043104,0.00341054,3110.5,3109.8,0.0285]
[1642516043303,0.00341054,3110.5,3109.8,0.1286]
[1642516043513,0.80375,3110.9,3109.8,0.1286]
[1642516043514,0.00284212,3110.4,3109.8,0.1286]
[1642516043904,1.47943844,3109.9,3109.8,0.1286]
[1642516044303,1.47943844,3109.9,3109.7,0.00113685]
[1642516044572,1.94043844,3109.9,3109.7,0.00113685]
[1642516044716,4.22083674,3109.8,3108.9,0.00397896]
[1642516044907,0.01230738,3109.0,3107.8,0.48540961]
[1642516045191,0.01230738,3109.0,3107.3,4.0194225]
[1642516045192,0.01288037,3108.3,3107.4,1.0]
[1642516045357,1.25383555,3108.2,3107.9,0.00625266]
[1642516045553,5.668,3108.0,3107.9,0.00625266]
[1642516045760,5.668,3108.0,3107.2,0.01794143]
[1642516045761,6.129,3108.0,3107.3,0.0096632]
[1642516046164,1.24835688,3108.1,3107.3,0.0096632]
[1642516046354,0.01216766,3109.0,3107.3,0.0096632]
[1642516046355,0.1287,3108.4,3107.3,0.0096632]
[1642516046561,0.1287,3108.7,3107.3,0.0096632]
[1642516046764,0.80424,3108.9,3107.2,4.22083674]
[1642516046964,0.80424,3108.9,3107.3,0.80423]
[1642516047156,0.00852635,3108.8,3107.5,6.0]
[1642516047364,0.00852635,3108.8,3108.5,1.37653918]
[1642516047584,0.00795793,3108.7,3108.5,1.37653918]
[1642516047815,0.00795793,3108.7,3107.6,4.22083674]
[1642516047960,0.0073895,3108.6,3107.5,0.461]
[1642516048156,0.0073895,3108.6,3107.4,0.76524]
[1642516048357,0.00682108,3108.5,3107.4,0.461]
[1642516048673,0.00625266,3108.4,3107.8,1.2101568]
[1642516048901,0.00625266,3108.4,3107.6,0.461]
[1642516049097,0.00568423,3108.3,3107.6,0.461]
[1642516049309,0.00568423,3108.3,3107.7,0.1287]
[1642516049497,0.00511581,3108.2,3107.7,0.1287]
[1642516050012,18.80226199,3109.0,3107.7,0.1287]
[1642516050013,0.00454739,3108.1,3107.7,0.1287]
[1642516050107,0.00454739,3108.1,3107.3,0.1285]
[1642516050427,0.00397896,3108.0,3107.3,0.1285]
[1642516050612,0.00397896,3108.0,3107.0,0.1]
[1642516050613,0.13267896,3108.0,3107.0,0.1]
[1642516050911,0.00902135,3107.8,3107.1,0.00113685]
[1642516051100,0.00341054,3107.9,3107.1,0.00113685]
[1642516051101,3.74227624,3107.2,3107.1,0.00113685]
[1642516051301,4.63307624,3107.2,3105.2,5.768]
[1642516051513,4.63307624,3107.2,3105.6,0.03909326]
[1642516051514,4.31348241,3107.1,3105.6,0.03909326]
[1642516051702,0.1287,3107.0,3106.1,0.00568423]
[1642516051903,0.1287,3107.1,3106.1,0.00568423]
[1642516052167,0.1287,3107.1,3105.7,1.77794593]
[1642516052306,0.1287,3107.1,3105.6,0.00852635]
[1642516052307,0.1287,3107.1,3105.8,1.21586055]
[1642516052554,0.80478,3106.9,3105.8,1.12325005]
[1642516052755,0.01238119,3107.2,3105.9,0.00682108]
[1642516052965,0.1287,3107.4,3105.9,0.00682108]
[1642516053156,4.22083674,3107.4,3105.9,0.00682108]
[1642516053373,0.00113685,3107.3,3106.9,1.13269066]
[1642516053565,0.81718787,3107.2,3106.9,1.13269066]
[1642516053758,0.01247787,3107.2,3106.9,1.13269066]
[1642516053963,4.57808,3108.1,3107.1,4.9]
[1642516054155,4.57808,3108.1,3106.9,1.13269066]
[1642516054156,0.1287,3107.8,3106.9,1.13269066]
[1642516054356,0.00113685,3107.6,3107.2,0.00113685]
[1642516054556,0.00113685,3107.6,3107.0,0.00227369]
[1642516054757,0.8046,3107.6,3107.1,0.00170527]
[1642516054969,0.8046,3107.6,3107.0,0.00227369]
[1642516055157,0.2287,3107.8,3107.0,0.00227369]
[1642516055362,0.2287,3107.8,3107.0,4.68411043]
[1642516055560,0.00170527,3107.7,3107.0,5.68411043]
[1642516055767,0.00170527,3107.7,3107.1,1.81939629]
[1642516055958,0.00170527,3107.7,3107.2,0.461]
[1642516056159,0.1287,3108.9,3107.3,6.0]
[1642516056439,0.1287,3108.9,3107.4,4.63183674]
[1642516056632,0.01254368,3109.6,3107.4,4.63183674]
[1642516056633,0.00568424,3108.7,3107.6,1.0]
[1642516056851,0.00568424,3108.7,3107.7,0.46999492]
[1642516057029,0.00511581,3108.6,3107.9,0.80413]
[1642516057233,0.00511581,3108.6,3108.1,2.22566205]
[1642516057429,0.00454739,3108.5,3108.2,1.72028192]
[1642516057831,0.00397897,3108.4,3108.2,2.02028192]
[1642516058031,0.00397897,3108.4,3108.2,3.82434192]
[1642516058240,0.00341054,3108.3,3108.2,4.12434192]
[1642516058442,0.1285,3110.1,3108.4,0.0091766]
[1642516058743,0.01254429,3110.2,3110.0,1.11285687]
[1642516058889,0.1285,3110.5,3110.0,1.0913]
[1642516059049,0.1285,3110.7,3110.0,1.0913]
[1642516059231,0.01080005,3110.2,3110.0,1.0913]
[1642516059432,4.5,3110.1,3108.9,1.60757]
[1642516059634,4.5,3110.1,3108.4,0.461]
[1642516059635,0.02556335,3109.5,3108.4,0.461]
[1642516059836,1.46832803,3109.2,3108.4,0.461]
[1642516060275,0.13304739,3109.1,3107.6,7.7344]
[1642516060476,1.74188482,3108.4,3107.5,0.00113685]
[1642516060663,1.74188482,3108.4,3107.2,1.94254882]
[1642516060664,0.1287,3108.7,3107.7,0.00341054]
[1642516060920,0.9330745,3108.7,3107.3,4.22652097]
[1642516061062,0.00170527,3108.6,3107.4,0.00511581]
[1642516061357,0.00113685,3108.5,3107.7,1.27810161]
[1642516061556,0.00113685,3108.5,3107.8,0.1285]
[1642516061757,0.00113685,3108.5,3107.8,0.13134212]
[1642516061986,0.00113685,3108.5,3107.9,0.00227369]
[1642516062966,0.1285,3108.4,3107.9,0.00227369]
[1642516063158,0.95636684,3108.4,3107.9,0.00227369]
[1642516063362,0.00742221,3108.2,3107.9,0.00227369]
[1642516063572,1.73769,3108.1,3107.9,0.00227369]
[1642516063842,6.0,3107.9,3106.5,3.8023]
[1642516064092,6.0,3107.9,3106.2,3.2955]
[1642516064093,0.80472,3107.5,3106.2,3.2955]
[1642516064253,0.01726849,3107.4,3106.6,0.00738951]
[1642516064443,0.1287,3107.4,3106.6,0.00738951]
[1642516064837,0.8047216,3107.3,3106.4,0.00852635]
[1642516065036,1.6094316,3107.3,3106.3,0.00909478]
[1642516065251,0.1287,3107.4,3106.3,0.00909478]
[1642516066041,6.0,3107.9,3106.8,1.12224203]
[1642516066042,1.45718341,3107.6,3106.8,1.12224203]
[1642516066265,1.64754856,3107.4,3106.4,0.1287]
[1642516066542,1.64754856,3107.4,3106.5,0.00795793]
[1642516067140,0.1287,3107.3,3106.4,0.00852635]
[1642516067371,1.28292716,3106.7,3106.1,0.01023162]
[1642516067574,0.1287,3107.1,3106.1,0.01023162]
[1642516067785,1.6095474,3107.5,3106.1,0.01023162]
[1642516067786,0.1287,3107.2,3106.1,0.01023162]
[1642516068063,0.1287,3107.4,3106.1,0.01023162]
[1642516068263,1.73802,3107.6,3106.1,0.01023162]
[1642516068467,1.60932,3107.6,3106.1,0.01023162]
[1642516068662,1.24399688,3107.1,3106.1,0.01023162]
[1642516069664,0.80476,3107.0,3106.1,0.01023162]
[1642516070068,0.75476,3107.0,3106.1,0.01023162]
[1642516070863,0.75476,3107.0,3106.2,0.1287]
[1642516071302,2.16574043,3106.9,3106.3,0.00909478]
[1642516071509,2.01663018,3106.6,3106.3,0.00909478]
[1642516071903,1.73861,3106.5,3106.2,0.0096632]
[1642516072103,1.73861,3106.5,3105.7,0.01250532]
[1642516072304,0.00481835,3106.4,3105.7,0.01250532]
[1642516072503,1.09294669,3106.1,3105.6,0.01307374]
[1642516073607,1.09294669,3106.1,3105.5,197.62306293]
[1642516073807,0.1287,3106.5,3105.5,197.62306293]
[1642516074020,0.00227369,3106.0,3105.5,197.62306293]
[1642516074207,0.00454739,3106.4,3105.5,197.62306293]
[1642516074408,0.00170527,3105.9,3105.8,2.02042208]
[1642516074719,0.00170527,3105.9,3105.8,3.05]
[1642516075781,0.00170527,3105.9,3105.8,3.0]
[1642516076393,5.27e-06,3105.9,3105.8,3.1287]
[1642516077681,5.27e-06,3105.9,3105.8,3.4287]
[1642516078806,5.27e-06,3105.9,3105.8,3.1287]
[1642516079013,5.27e-06,3105.9,3105.8,3.7287]
[1642516079223,0.1287,3107.1,3105.8,4.12701798]
[1642516079428,0.1287,3107.1,3106.2,0.80444]
[1642516079633,0.00625266,3107.0,3106.4,1.0]
[1642516079823,0.00625266,3107.0,3106.8,2.17237696]
[1642516080013,0.1287,3107.1,3106.8,2.17237696]
[1642516080014,0.00568423,3106.9,3106.8,2.55837696]
[1642516080225,0.00568423,3106.9,3106.8,0.5147]
[1642516080445,0.00568423,3106.9,3106.8,6.336]
[1642516080621,0.00568423,3106.9,3106.8,6.4647]
[1642516080808,0.00568423,3106.9,3106.8,7.23553]
[1642516081012,0.00568423,3106.9,3106.8,0.3524]
[1642516081210,0.00568423,3106.9,3106.0,2.26331492]
[1642516081410,0.00568423,3106.9,3106.0,1.87731492]
[1642516081610,0.00511581,3106.8,3106.0,1.87731492]
[1642516081834,0.00511581,3106.8,3105.9,3.31586883]
[1642516081835,0.80477,3106.7,3105.9,3.31586883]
[1642516082009,0.80477,3106.7,3105.6,0.386]
[1642516082010,0.93801739,3106.7,3105.6,0.386]
[1642516082212,1.51931415,3106.0,3105.6,0.386]
[1642516082411,1.51931415,3106.0,3105.7,0.00113685]
[1642516082665,0.00397896,3106.6,3105.7,0.00113685]
[1642516082666,0.1287,3105.9,3105.7,0.00113685]
[1642516082952,0.1287,3106.4,3105.6,0.00170527]
[1642516083152,0.00341054,3106.5,3105.6,0.00170527]
[1642516083357,0.00227369,3106.3,3105.6,0.00170527]
[1642516083566,0.00284212,3106.4,3106.0,0.01250565]
[1642516083871,1.37081918,3107.3,3106.1,8.84331808]
[1642516083872,0.00227369,3106.3,3106.1,8.84331808]
[1642516084257,0.00170527,3106.2,3106.1,8.79831711]
[1642516084462,0.00170527,3106.2,3106.1,1.44071207]
[1642516085564,0.00170527,3106.2,3106.1,0.386]
[1642516085758,0.00170527,3106.2,3105.7,2.0]
[1642516085995,0.1287,3106.1,3105.7,2.0]
[1642516086159,0.12983685,3106.1,3105.7,2.0]
[1642516087085,0.00113685,3106.1,3105.7,2.0]
[1642516087501,0.00113685,3106.1,3105.7,2.80473]
[1642516088177,0.00113685,3106.1,3105.7,4.80190252]
[1642516088313,0.00113685,3106.1,3105.7,2.80473]
[1642516088713,0.00113685,3106.1,3105.7,2.1287]
[1642516088923,0.00113685,3106.1,3105.7,2.0]
[1642516088924,0.71093685,3106.1,3105.7,2.0]
[1642516089307,1.51587685,3106.1,3105.7,2.0]
[1642516089909,2.87076203,3106.0,3105.7,2.0]
[1642516090377,3.77536203,3106.0,3105.7,2.0]
[1642516090555,2.05568891,3105.9,3105.7,2.0]
[1642516090757,0.1287,3105.8,3105.7,2.0]
[1642516092180,3.27079773,3105.9,3105.7,2.0]
[1642516092357,0.1287,3106.0,3105.7,2.0]
[1642516092558,0.00113685,3106.1,3105.7,2.0]
[1642516093820,0.80604685,3106.1,3105.7,2.0]
[1642516094016,0.00113685,3106.1,3105.7,2.0]
[1642516094431,0.00113685,3106.1,3105.9,0.01518127]
[1642516094661,0.00113685,3106.1,3106.0,6.0787]
[1642516094844,1.63112584,3107.1,3107.0,1.47750209]
[1642516095034,1.63112584,3107.1,3106.2,5.95]
[1642516095221,1.63112584,3107.1,3106.3,0.1287]
[1642516096123,1.63112584,3107.1,3105.9,0.1287]
[1642516096124,1.45760626,3106.8,3105.9,0.1287]
[1642516096343,2.12629755,3106.2,3105.7,2.0]
[1642516096620,2.12629755,3106.2,3105.8,0.00170527]
[1642516097426,0.01344107,3106.0,3105.8,0.00170527]
[1642516097652,0.80491,3106.1,3105.8,0.00170527]
[1642516097862,0.80483,3106.4,3105.8,0.00170527]
[1642516098263,0.00113684,3106.3,3105.8,0.00170527]
[1642516098856,0.00113684,3106.3,3105.8,1.49294566]
[1642516099256,0.00113684,3106.3,3105.9,0.00113685]
[1642516099467,0.00113684,3106.3,3105.9,0.12983685]
[1642516100364,0.80599684,3106.3,3105.9,0.12983685]
[1642516100554,0.80599684,3106.3,3105.9,0.00113685]
[1642516100754,0.00113684,3106.3,3105.9,0.00113685]
[1642516100957,0.00113684,3106.3,3105.8,0.00170527]
[1642516101155,0.00113684,3106.3,3105.8,0.13040527]
[1642516101437,0.00113684,3106.3,3105.8,0.14291038]
[1642516101621,0.00113684,3106.3,3106.0,2.08913619]
[1642516101826,0.00113684,3106.3,3106.1,0.93335]
[1642516102231,0.00113684,3106.3,3106.2,7.47296189]
[1642516103027,3.684e-05,3106.3,3106.2,5.95]
[1642516103253,4.11288402,3107.9,3106.3,5.95]
[1642516103445,4.11288402,3107.9,3106.7,0.80448]
[1642516103627,0.00795793,3107.7,3106.7,1.19048]
[1642516104028,0.1287,3107.8,3107.3,1.19304878]
[1642516104029,0.00738951,3107.6,3107.3,1.19304878]
[1642516104427,0.00682108,3107.5,3107.3,1.19304878]
[1642516104628,0.00682108,3107.5,3107.3,1.99738878]
[1642516104848,0.00625266,3107.4,3107.3,1.99738878]
[1642516105062,0.00625266,3107.4,3107.3,1.19304878]
[1642516105264,0.00625266,3107.4,3107.3,5.19304878]
[1642516106254,0.00625266,3107.4,3107.3,8.80155529]
[1642516106454,0.1287,3108.1,3107.3,9.18755529]
[1642516106733,5.70576346,3108.8,3108.2,1.10518692]
[1642516106734,0.1287,3108.7,3108.2,1.10518692]
[1642516107259,5.74400986,3108.9,3107.9,0.5145]
[1642516107455,5.74400986,3108.9,3107.9,0.386]
[1642516107679,0.00795793,3108.8,3107.9,0.386]
[1642516108069,0.00738951,3108.7,3108.0,2.4122533]
[1642516108255,1.73194624,3108.6,3108.0,0.8041033]
[1642516108555,0.00625266,3108.5,3107.9,2.47170182]
[1642516109009,0.00568424,3108.4,3107.9,2.47170182]
[1642516109411,0.00511581,3108.3,3107.9,2.47170182]
[1642516109716,0.00454739,3108.2,3107.9,4.20846588]
[1642516110112,0.00397897,3108.1,3107.9,4.20846588]
[1642516110311,0.00397897,3108.1,3108.0,6.95]
[1642516110527,1.75982584,3109.4,3108.1,5.95]
[1642516110814,0.00568423,3109.1,3108.6,1.9106816]
[1642516111067,0.00568423,3109.1,3108.7,0.1285]
[1642516111225,0.00511581,3109.0,3108.8,1.30831564]
[1642516111615,0.00454738,3108.9,3108.8,1.30831564]
[1642516112013,0.00454738,3108.9,3108.8,7.25831564]
[1642516112412,0.00454738,3108.9,3108.8,8.25831564]
[1642516112653,0.00454738,3108.9,3108.8,8.06221564]
[1642516113059,0.1285,3109.7,3108.8,8.06221564]
[1642516113060,0.03304738,3109.7,3108.9,3.8]
[1642516113255,0.1286,3109.8,3108.8,2.11221564]
[1642516113454,0.00284212,3109.4,3108.8,1.30831564]
[1642516113653,0.00284212,3109.4,3109.3,1.30958986]
[1642516113852,1.85919052,3109.8,3109.1,1.60759]
[1642516113853,0.0022737,3109.3,3109.1,1.60759]
[1642516114273,0.00170527,3109.2,3108.9,0.5145]
[1642516114459,0.00170527,3109.2,3108.9,0.386]
[1642516114658,3.685e-05,3109.1,3108.9,0.386]
[1642516114861,2.73998444,3109.7,3109.1,5.95]
[1642516115063,3.31887762,3109.9,3109.2,1.1285]
[1642516115064,0.68147762,3109.9,3109.2,1.1285]
[1642516115269,0.68147762,3109.9,3109.5,0.02340831]
[1642516115460,0.00113684,3109.8,3109.7,5.95362157]
[1642516115678,4.11288402,3110.7,3109.8,5.95]
[1642516115867,0.088342,3110.9,3110.4,1.91987213]
[1642516115868,0.00397897,3110.5,3110.4,1.91987213]
[1642516116068,0.00397897,3110.5,3110.4,9.25587213]
[1642516116309,4.11288402,3110.8,3110.4,9.25587213]
[1642516116310,4.01799984,3110.8,3110.5,5.95]
[1642516116513,4.01799984,3110.8,3110.6,0.386]
[1642516116712,4.01799984,3110.8,3110.6,1.386]
[1642516117214,0.088342,3110.9,3110.7,11.21036912]
[1642516117413,1.63112584,3111.1,3110.8,0.386]
[1642516117615,0.0008,3111.4,3110.8,1.386]
[1642516117821,0.00170527,3111.0,3110.8,0.386]
[1642516118217,0.00113684,3110.9,3110.8,0.386]
[1642516119031,0.00113684,3110.9,3110.8,6.336]
[1642516119221,0.00113684,3110.9,3110.8,7.13929]
[1642516119418,0.07933684,3111.9,3111.0,0.03734829]
[1642516119717,8.58,3112.0,3111.1,1.99233]
[1642516119828,0.0022737,3111.3,3111.2,0.03602915]
[1642516120096,8.58,3112.0,3111.3,5.95]
[1642516120271,8.58,3112.0,3111.4,0.386]
[1642516120477,0.00341054,3111.9,3111.4,0.386]
[1642516120886,0.00284211,3111.8,3111.4,0.386]
[1642516121271,2.12525398,3111.7,3111.4,0.386]
[1642516121472,1.49098007,3111.6,3110.2,4.20218724]
[1642516121672,1.51173629,3111.6,3110.5,0.386]
[1642516121904,0.00113684,3111.5,3110.5,0.386]
[1642516122080,0.15264212,3111.4,3110.6,0.00397897]
[1642516122272,0.15264212,3111.4,3110.7,0.386]
[1642516122473,2.27421789,3110.8,3110.7,0.386]
[1642516123072,2.27421789,3110.8,3110.7,3.686]
[1642516123279,0.1285,3111.4,3110.7,3.686]
[1642516123477,0.80463684,3111.5,3110.7,3.686]
[1642516123673,0.80463684,3111.5,3110.8,0.00284212]
[1642516123905,0.93313684,3111.5,3110.8,0.00284212]
[1642516124310,2.3062673,3111.1,3110.8,0.00284212]
[1642516124713,2.3062673,3111.1,3110.8,0.80621212]
[1642516125128,2.3062673,3111.1,3110.9,0.0022737]
[1642516126215,1.91818778,3111.4,3110.9,0.0022737]
[1642516126216,1.24315778,3111.4,3110.9,0.0022737]
[1642516126411,1.11465778,3111.4,3110.5,1.42214366]
[1642516127022,1.11465778,3111.4,3110.6,0.00397897]
[1642516127295,1.11465778,3111.4,3110.8,0.80338]
[1642516127412,3.14340774,3111.4,3110.8,0.80338]
[1642516127654,3.14340774,3111.4,3110.9,0.0022737]
[1642516128474,0.00113684,3111.5,3110.6,0.386]
[1642516128475,0.00113684,3111.5,3111.0,0.386]
[1642516128680,0.00113684,3111.5,3111.1,0.386]
[1642516128858,0.00113684,3111.5,3111.2,0.02203529]
[1642516129058,0.00113684,3111.5,3111.3,0.386]
[1642516129466,0.00113684,3111.5,3111.4,7.97747292]
[1642516129683,8.53113684,3112.0,3111.4,8.36347292]
[1642516129959,0.0022737,3111.9,3111.4,3.41347292]
[1642516130156,0.0022737,3111.9,3111.4,2.41347292]
[1642516130358,0.00170527,3111.8,3111.4,2.41347292]
[1642516130572,0.00170527,3111.8,3111.4,3.41347292]
[1642516130760,0.1285,3112.6,3111.5,5.96239134]
[1642516130964,1.61832571,3113.2,3111.5,5.96239134]
[1642516130965,0.40489994,3112.9,3111.8,0.80296]
[1642516131172,0.00113685,3111.9,3111.8,0.80296]
[1642516131424,4.10778605,3113.0,3111.9,5.95]
[1642516131645,4.10778605,3113.0,3112.0,1.386]
[1642516131805,0.00511581,3112.8,3112.6,6.2057659]
[1642516132003,0.00511581,3112.8,3112.6,2.2286859]
[1642516132206,3.23946601,3113.7,3112.7,6.336]
[1642516132207,0.1285,3113.5,3112.7,6.336]
[1642516132405,0.1285,3113.6,3112.7,6.336]
[1642516132604,0.00568423,3112.9,3112.7,6.336]
[1642516132804,0.00568423,3112.9,3112.8,6.95]
[1642516133005,2.10996522,3113.6,3112.8,6.336]
[1642516133225,3.25842566,3113.6,3112.8,7.13879]
[1642516133406,0.00909477,3113.5,3112.8,7.13879]
[1642516133815,0.00852635,3113.4,3112.9,1.0]
[1642516134113,7.90332584,3114.2,3112.8,4.22322112]
[1642516134114,0.00795793,3113.3,3112.8,4.22322112]
[1642516134409,0.0073895,3113.2,3113.1,1.30249682]
[1642516134618,4.10778605,3114.1,3113.2,5.95]
[1642516134835,4.10778605,3114.1,3113.3,0.386]
[1642516135061,4.10778605,3114.1,3112.3,3.0]
[1642516135062,0.00454739,3114.0,3113.4,0.386]
[1642516135266,0.1283,3113.9,3113.1,0.386]
[1642516135464,0.01283417,3113.7,3113.1,0.386]
[1642516135664,0.81574417,3113.7,3113.1,0.386]
[1642516135926,0.0022737,3113.6,3113.1,0.386]
[1642516136067,0.0022737,3113.6,3112.3,1.99181]
[1642516136068,0.1305737,3113.6,3112.3,1.99181]
[1642516136266,1.99340671,3112.8,3112.3,1.99181]
[1642516136472,0.1285,3113.4,3112.3,1.84635739]
[1642516136670,0.63930641,3113.3,3112.3,1.84635739]
[1642516136869,0.64442223,3113.3,3112.3,1.84635739]
[1642516137066,0.00454739,3113.2,3112.3,1.84635739]
[1642516137270,1.45159874,3112.9,3112.3,1.84635739]
[1642516137567,0.0022737,3112.8,3112.3,1.84635739]
[1642516137787,0.0022737,3112.8,3112.3,1.79635739]
[1642516138071,0.00170527,3112.7,3112.3,1.79635739]
[1642516138383,1.45159874,3112.9,3112.3,1.79635739]
[1642516138384,1.40330401,3112.9,3112.4,4.55]
[1642516138568,2.0214564,3112.6,3112.5,0.02420248]
[1642516138813,2.0214564,3112.6,3112.5,0.8029]
[1642516139203,1.40330401,3112.9,3112.5,0.8029]
[1642516140007,0.63930641,3113.3,3112.5,0.8029]
[1642516140433,1.7354126,3113.0,3112.5,0.8029]
[1642516140610,1.7354126,3113.0,3112.6,0.386]
[1642516140812,0.00113685,3112.9,3112.6,0.386]
[1642516141014,0.00113685,3112.9,3112.7,1.60562]
[1642516141213,2.74046293,3113.2,3112.7,1.60562]
[1642516141618,0.0022737,3113.1,3112.7,1.60562]
[1642516142350,0.1283,3113.2,3112.8,5.95]
[1642516142558,0.1283,3113.2,3112.9,0.1283]
[1642516142757,0.1283,3113.2,3113.0,0.41117085]
[1642516142962,0.1283,3113.2,3113.0,0.386]
[1642516143565,6.54161189,3114.1,3113.6,1.20593134]
[1642516143775,5.73891189,3114.1,3113.7,0.02030043]
[1642516143973,0.00511581,3114.0,3113.7,0.02030043]
[1642516144283,0.94086997,3114.5,3113.8,0.386]